fUST/lending_fUST_20260217
["ID","MTS","AMOUNT","RATE_DAILY","PERIOD"]
[405815694,1771333857248,-576.95,0.0001863,2]
[405815695,1771333857258,-500.0,0.0001863,2]
[405815696,1771333857267,-500.0,0.0001863,2]
[405815697,1771333857276,-535.7,0.0001863,2]
[405815698,1771333857286,-500.0,0.0001863,2]
[405815699,1771333857295,-500.0,0.0001863,2]
[405815700,1771333857304,-500.0,0.0001863,2]
[405815701,1771333857312,-516.83,0.0001863,2]
[405815702,1771333857321,-500.0,0.0001863,2]
[405815703,1771333857330,-500.0,0.0001863,2]
[405815704,1771333857339,-500.0,0.0001863,2]
[405815705,1771333857347,-745.29,0.0001863,2]
[405815706,1771333857356,-156.85831734,0.0001863,2]
[405815707,1771333857366,-318.89227481,0.0001863,2]
[405815708,1771333857375,-5962.75,0.0001863,2]
[405815709,1771333857384,-2833.52,0.0001863,2]
[405815710,1771333857394,-500.0,0.0001863,2]
[405815711,1771333857403,-794.37,0.0001863,2]
[405815712,1771333857412,-500.0,0.0001863,2]
[405815713,1771333857421,-472.45717921,0.0001863,2]
[405815714,1771333857430,-676.25,0.0001863,2]
[405815715,1771333857440,-500.0,0.0001863,2]
[405815716,1771333857450,-500.0,0.0001863,2]
[405815717,1771333857459,-500.0,0.0001863,2]
[405815718,1771333857469,-321.95770835,0.0001863,2]
[405815719,1771333857478,-500.0,0.0001863,2]
[405815720,1771333857488,-500.0,0.0001863,2]
[405815721,1771333857497,-640.78,0.0001863,2]
[405815723,1771333857506,-446.33176342,0.0001863,2]
[405815725,1771333857516,-500.0,0.0001863,2]
[405815727,1771333857525,-1641.04,0.0001863,2]
[405815729,1771333857534,-500.0,0.0001863,2]
[405815731,1771333857544,-500.0,0.0001863,2]
[405815733,1771333857552,-8287.17,0.0001863,2]
[405815735,1771333857562,-1095.31,0.0001863,2]
[405815737,1771333857571,-593.16,0.0001863,2]
[405815739,1771333857580,-500.0,0.0001863,2]
[405815740,1771333857589,-737.15,0.0001863,2]
[405815741,1771333857598,-1099.82,0.0001863,2]
[405815742,1771333857607,-500.0,0.0001863,2]
[405815743,1771333857616,-500.0,0.0001863,2]
[405815744,1771333857625,-500.0,0.0001863,2]
[405815745,1771333857635,-500.0,0.0001863,2]
[405815746,1771333857644,-41414.35,0.0001863,2]
[405815747,1771333857654,-500.0,0.0001863,2]
[405815748,1771333857663,-160.0,0.0001865,5]
[405815749,1771333857672,-162.27436911,0.0001865,5]
[405815750,1771333857682,-160.0,0.0001865,3]
[405815751,1771333857692,-257.56589583,0.0001865,5]
[405815752,1771333857701,-980.10045765,0.00018871,28]
[405815753,1771333857710,-500.0,0.00018904,2]
[405815754,1771333857720,-500.0,0.00018904,2]
[405815755,1771333857729,-500.0,0.00018904,2]
[405815756,1771333857738,-515.43973549,0.00018904,2]
[405815757,1771333857747,-536.39,0.00018904,2]
[405815758,1771333857757,-264.92962573,0.00018904,2]
[405815759,1771333857767,-500.0,0.00018904,2]
[405815760,1771333857776,-500.0,0.00018904,2]
[405815761,1771333857786,-687.5,0.00018904,2]
[405815762,1771333857796,-500.0,0.00018904,2]
[405815763,1771333857806,-576.95,0.00018904,2]
[405815764,1771333857815,-500.0,0.00018904,2]
[405815765,1771333857824,-500.0,0.00018904,2]
[405815766,1771333857833,-535.7,0.00018904,2]
[405815767,1771333857843,-500.0,0.00018904,2]
[405815768,1771333857852,-500.0,0.00018904,2]
[405815769,1771333857862,-500.0,0.00018904,2]
[405815770,1771333857871,-516.83,0.00018904,2]
[405815771,1771333857881,-504.49683663,0.00018904,2]
[405815772,1771333857890,-500.0,0.00018904,2]
[405815773,1771333857899,-500.0,0.00018904,2]
[405815774,1771333857910,-745.29,0.00018904,2]
[405815775,1771333857920,-5962.75,0.00018904,2]
[405815776,1771333857929,-2833.52,0.00018904,2]
[405815777,1771333857938,-500.0,0.00018904,2]
[405815778,1771333857947,-794.37,0.00018904,2]
[405815779,1771333857957,-500.0,0.00018904,2]
[405815780,1771333857966,-676.25,0.00018904,2]
[405815781,1771333857976,-500.0,0.00018904,2]
[405815782,1771333857986,-500.0,0.00018904,2]
[405815783,1771333857995,-500.0,0.00018904,2]
[405815784,1771333858005,-628.00394391,0.00018904,2]
[405815785,1771333858014,-500.0,0.00018904,2]
[405815786,1771333858023,-640.78,0.00018904,2]
[405815787,1771333858103,-500.0,0.00018904,2]
[405815788,1771333858116,-1641.04,0.00018904,2]
[405815789,1771333858127,-500.0,0.00018904,2]
[405815790,1771333858136,-500.0,0.00018904,2]
[405815791,1771333858146,-8287.17,0.00018904,2]
[405815792,1771333858156,-1095.31,0.00018904,2]
[405815793,1771333858168,-593.16,0.00018904,2]
[405815794,1771333858177,-500.0,0.00018904,2]
[405815795,1771333858187,-737.15,0.00018904,2]
[405815796,1771333858197,-1099.82,0.00018904,2]
[405815797,1771333858207,-500.0,0.00018904,2]
[405815798,1771333858216,-500.0,0.00018904,2]
[405815799,1771333858226,-500.0,0.00018904,2]
[405815800,1771333858237,-500.0,0.00018904,2]
[405815801,1771333858247,-41414.35,0.00018904,2]
[405815802,1771333858257,-500.0,0.00018904,2]
[405815803,1771333858266,-350.0,0.00018904,2]
[405815804,1771333858276,-823.0,0.00018923,2]
[405815805,1771333858285,-150.0,0.00019,2]
[405815806,1771333858294,-358.71224442,0.00019,20]
[405815807,1771333858303,-1000.0,0.00019,2]
[405815808,1771333858312,-1000.0,0.00019,2]
[405815809,1771333858321,-2266.18955854,0.00019,2]
[405815810,1771333858330,-449.603125,0.0001902,2]
[405815811,1771333858339,-2979.0,0.00019177,2]
[405815812,1771333858349,-500.0,0.00019178,2]
[405815813,1771333858358,-500.0,0.00019178,2]
[405815814,1771333858367,-500.0,0.00019178,2]
[405815815,1771333858376,-536.39,0.00019178,2]
[405815816,1771333858385,-500.0,0.00019178,2]
[405815817,1771333858395,-648.14899011,0.00019178,2]
[405815818,1771333858405,-1020.96,0.00019178,2]
[405815819,1771333858414,-687.5,0.00019178,2]
[405815820,1771333858424,-500.0,0.00019178,2]
[405815821,1771333858434,-576.95,0.00019178,2]
[405815822,1771333858443,-847.75,0.00019178,2]
[405815823,1771333858453,-500.0,0.00019178,2]
[405815824,1771333858462,-500.0,0.00019178,2]
[405815825,1771333858471,-510.16,0.00019178,2]
[405815826,1771333858481,-535.7,0.00019178,2]
[405815827,1771333858490,-500.0,0.00019178,2]
[405815828,1771333858500,-500.0,0.00019178,2]
[405815829,1771333858510,-500.0,0.00019178,2]
[405815830,1771333858519,-516.83,0.00019178,2]
[405815831,1771333858528,-500.0,0.00019178,2]
[405815832,1771333858538,-1786.68,0.00019178,2]
[405815833,1771333858547,-500.0,0.00019178,2]
[405815834,1771333858557,-745.29,0.00019178,2]
[405815835,1771333858566,-5962.75,0.00019178,2]
[405815836,1771333858576,-2833.52,0.00019178,2]
[405815837,1771333858585,-500.0,0.00019178,2]
[405815838,1771333858594,-794.37,0.00019178,2]
[405815839,1771333858604,-2553.71,0.00019178,2]
[405815840,1771333858614,-500.0,0.00019178,2]
[405815841,1771333858624,-510.0,0.00019178,2]
[405815842,1771333858634,-676.25,0.00019178,2]
[405815843,1771333858643,-500.0,0.00019178,2]
[405815844,1771333858653,-513.03,0.00019178,2]
[405815845,1771333858663,-287.11392742,0.00019178,2]
[405815846,1771333858673,-500.0,0.00019178,2]
[405815847,1771333858682,-500.0,0.00019178,2]
[405815848,1771333858692,-640.78,0.00019178,2]
[405815849,1771333858703,-500.0,0.00019178,2]
[405815850,1771333858712,-1641.04,0.00019178,2]
[405815851,1771333858722,-500.0,0.00019178,2]
[405815852,1771333858731,-500.0,0.00019178,2]
[405815853,1771333858740,-8287.17,0.00019178,2]
[405815854,1771333858750,-1095.31,0.00019178,2]
[405815855,1771333858760,-593.16,0.00019178,2]
[405815856,1771333858769,-500.0,0.00019178,2]
[405815857,1771333858779,-737.15,0.00019178,2]
[405815858,1771333858789,-1099.82,0.00019178,2]
[405815859,1771333858798,-500.0,0.00019178,2]
[405815860,1771333858808,-500.0,0.00019178,2]
[405815861,1771333858817,-325.62,0.00019178,2]
[405815862,1771333858827,-500.0,0.00019178,2]
[405815863,1771333858836,-41414.35,0.00019178,2]
[405815864,1771333858846,-500.0,0.00019178,2]
[405815865,1771333858856,-151.0,0.00019178,2]
[405815866,1771333858867,-151.0,0.00019178,2]
[405815867,1771333858877,-151.0,0.00019178,2]
[405815868,1771333858886,-151.0,0.00019178,2]
[405815869,1771333858897,-151.0,0.00019178,2]
[405815870,1771333858906,-151.0,0.00019178,2]
[405815871,1771333858915,-151.0,0.00019178,2]
[405815872,1771333858925,-151.0,0.00019178,2]
[405815873,1771333858934,-175.8388,0.00019178,2]
[405815874,1771333858943,-8185.63,0.000192,2]
[405815875,1771333858953,-174.04,0.000192,2]
[405815876,1771333858963,-904.97,0.000192,2]
[405815877,1771333858972,-200.0,0.00019282,120]
[405815878,1771333858981,-158.02,0.00019327,2]
[405815879,1771333858990,-980.10045765,0.00019339,31]
[405815880,1771333859000,-864.0,0.00019376,2]
[405815881,1771333859009,-500.0,0.00019452,2]
[405815882,1771333859019,-500.0,0.00019452,2]
[405815883,1771333859028,-500.0,0.00019452,2]
[405815884,1771333859038,-536.39,0.00019452,2]
[405815885,1771333859047,-500.0,0.00019452,2]
[405815886,1771333859057,-687.5,0.00019452,2]
[405815887,1771333859067,-500.0,0.00019452,2]
[405815888,1771333859075,-576.95,0.00019452,2]
[405815889,1771333859084,-500.0,0.00019452,2]
[405815890,1771333859093,-500.0,0.00019452,2]
[405815891,1771333859102,-535.7,0.00019452,2]
[405815892,1771333859111,-500.0,0.00019452,2]
[405815893,1771333859121,-165.43130031,0.00019452,2]
[405815894,1771333859130,-500.0,0.00019452,2]
[405815895,1771333859139,-516.83,0.00019452,2]
[405815896,1771333859148,-500.0,0.00019452,2]
[405815897,1771333859157,-500.0,0.00019452,2]
[405815898,1771333859170,-745.29,0.00019452,2]
[405815899,1771333859179,-5962.75,0.00019452,2]
[405815900,1771333859188,-2833.52,0.00019452,2]
[405815901,1771333859197,-500.0,0.00019452,2]
[405815902,1771333859206,-794.37,0.00019452,2]
[405815903,1771333859215,-500.0,0.00019452,2]
[405815904,1771333859224,-676.25,0.00019452,2]
[405815905,1771333859233,-500.0,0.00019452,2]
[405815906,1771333859242,-500.0,0.00019452,2]
[405815907,1771333859251,-226.10197916,0.00019452,2]
[405815908,1771333859260,-640.78,0.00019452,2]
[405815909,1771333859268,-500.0,0.00019452,2]
[405815910,1771333859277,-1641.04,0.00019452,2]
[405815911,1771333859286,-500.0,0.00019452,2]
[405815912,1771333859295,-500.0,0.00019452,2]
[405815913,1771333859304,-8287.17,0.00019452,2]
[405815914,1771333859313,-1095.31,0.00019452,2]
[405815915,1771333859322,-593.16,0.00019452,2]
[405815916,1771333859332,-500.0,0.00019452,2]
[405815917,1771333859341,-737.15,0.00019452,2]
[405815918,1771333859350,-1099.82,0.00019452,2]
[405815919,1771333859360,-500.0,0.00019452,2]
[405815920,1771333859368,-340.58870158,0.00019452,2]
[405815921,1771333859377,-500.0,0.00019452,2]
[405815922,1771333859386,-41414.35,0.00019452,2]
[405815923,1771333859395,-500.0,0.00019452,2]
[405815924,1771333859409,-254.5212443,0.00019452,2]
[405815925,1771333859418,-160.07683315,0.00019472,32]
[405815926,1771333859427,-559.9508134,0.000195,2]
[405815927,1771333859435,-1000.0,0.000196,2]
[405815928,1771333859445,-295891.74368962,0.00019602,2]
[405815929,1771333859454,-238.54017322,0.00019602,30]
[405815930,1771333859463,-200.0,0.00019691,120]
[405815931,1771333859471,-500.0,0.00019726,2]
[405815932,1771333859480,-500.0,0.00019726,2]
[405815933,1771333859489,-500.0,0.00019726,2]
[405815934,1771333859498,-536.39,0.00019726,2]
[405815935,1771333859506,-500.0,0.00019726,2]
[405815936,1771333859515,-687.5,0.00019726,2]
[405815937,1771333859524,-500.0,0.00019726,2]
[405815938,1771333859533,-576.95,0.00019726,2]
[405815939,1771333859542,-500.0,0.00019726,2]
[405815940,1771333859552,-500.0,0.00019726,2]
[405815941,1771333859626,-535.7,0.00019726,2]
[405815942,1771333859642,-500.0,0.00019726,2]
[405815943,1771333859651,-500.0,0.00019726,2]
[405815944,1771333859660,-516.83,0.00019726,2]
[405815945,1771333859670,-500.0,0.00019726,2]
[405815946,1771333859679,-500.0,0.00019726,2]
[405815947,1771333859688,-745.29,0.00019726,2]
[405815948,1771333859698,-5962.75,0.00019726,2]
[405815949,1771333859707,-2833.52,0.00019726,2]
[405815950,1771333859717,-500.0,0.00019726,2]
[405815951,1771333859726,-794.37,0.00019726,2]
[405815952,1771333859735,-500.0,0.00019726,2]
[405815953,1771333859745,-676.25,0.00019726,2]
[405815954,1771333859755,-500.0,0.00019726,2]
[405815955,1771333859764,-500.0,0.00019726,2]
[405815956,1771333859774,-640.78,0.00019726,2]
[405815957,1771333859784,-500.0,0.00019726,2]
[405815958,1771333859794,-1641.04,0.00019726,2]
[405815959,1771333859803,-500.0,0.00019726,2]
[405815960,1771333859813,-500.0,0.00019726,2]
[405815961,1771333859823,-8287.17,0.00019726,2]
[405815962,1771333859832,-1095.31,0.00019726,2]
[405815963,1771333859841,-593.16,0.00019726,2]
[405815964,1771333859850,-500.0,0.00019726,2]
[405815965,1771333859860,-737.15,0.00019726,2]
[405815966,1771333859870,-1099.82,0.00019726,2]
[405815967,1771333859879,-500.0,0.00019726,2]
[405815968,1771333859889,-500.0,0.00019726,2]
[405815969,1771333859899,-41414.35,0.00019726,2]
[405815970,1771333859909,-500.0,0.00019726,2]
[405815971,1771333859919,-5000.0,0.00019791,2]
[405815972,1771333859928,-980.10045765,0.00019806,35]
[405815973,1771333859938,-6430.72801992,0.00019843,2]
[405815974,1771333859948,-5000.0,0.00019843,2]
[405815975,1771333859957,-5000.0,0.00019843,2]
[405815976,1771333859967,-494.32645093,0.00019852,2]
[405815977,1771333859976,-203.117,0.00019895,2]
[405815978,1771333859985,-200.0,0.00019897,120]
[405815979,1771333859995,-1180.28274573,0.00019988,2]
[405815980,1771333860005,-3081.98315591,0.0002,2]
[405815981,1771333860015,-14765.90176161,0.0002,2]
[405815982,1771333860024,-153.62374149,0.0002,2]
[405815983,1771333860034,-96956.82993574,0.0002,2]
[405815984,1771333860044,-500.0,0.0002,2]
[405815985,1771333860054,-500.0,0.0002,2]
[405815986,1771333860065,-500.0,0.0002,2]
[405815987,1771333860074,-536.39,0.0002,2]
[405815988,1771333860084,-500.0,0.0002,2]
[405815989,1771333860095,-687.5,0.0002,2]
[405815990,1771333860105,-500.0,0.0002,2]
[405815991,1771333860115,-576.95,0.0002,2]
[405815992,1771333860125,-500.0,0.0002,2]
[405815993,1771333860135,-500.0,0.0002,2]
[405815994,1771333860145,-535.7,0.0002,2]
[405815995,1771333860156,-500.0,0.0002,2]
[405815996,1771333860167,-151.58578644,0.0002,2]
[405815997,1771333860178,-500.0,0.0002,2]
[405815998,1771333860187,-516.83,0.0002,2]
[405815999,1771333860196,-500.0,0.0002,2]
[405816000,1771333860206,-250.0,0.0002,10]
[405816001,1771333860216,-500.0,0.0002,2]
[405816002,1771333860225,-745.29,0.0002,2]
[405816003,1771333860237,-5962.75,0.0002,2]
[405816004,1771333860247,-200.575666,0.0002,2]
[405816005,1771333860256,-2833.52,0.0002,2]
[405816006,1771333860266,-500.0,0.0002,2]
[405816007,1771333860276,-794.37,0.0002,2]
[405816008,1771333860286,-500.0,0.0002,2]
[405816009,1771333860296,-676.25,0.0002,2]
[405816010,1771333860306,-500.0,0.0002,2]
[405816011,1771333860315,-500.0,0.0002,2]
[405816012,1771333860324,-640.78,0.0002,2]
[405816013,1771333860334,-500.0,0.0002,2]
[405816014,1771333860344,-1641.04,0.0002,2]
[405816015,1771333860354,-500.0,0.0002,2]
[405816016,1771333860364,-500.0,0.0002,2]
[405816017,1771333860374,-8287.17,0.0002,2]
[405816018,1771333860384,-1095.31,0.0002,2]
[405816019,1771333860394,-593.16,0.0002,2]
[405816020,1771333860404,-2000.0,0.0002,7]
[405816021,1771333860414,-500.0,0.0002,2]
[405816022,1771333860423,-737.15,0.0002,2]
[405816023,1771333860433,-1099.82,0.0002,2]
[405816024,1771333860443,-500.0,0.0002,2]
[405816025,1771333860452,-500.0,0.0002,2]
[405816026,1771333860462,-41414.35,0.0002,2]
[405816027,1771333860472,-164.91507558,0.00020095,2]
[405816028,1771333860482,-501.13,0.000201,2]
[405816029,1771333860491,-250.0,0.000201,10]
[405816030,1771333860501,-250.0,0.000202,10]
[405816031,1771333860511,-360.23331911,0.00020247,2]
[405816032,1771333860521,-200.0,0.0002027,120]
[405816033,1771333860531,-500.0,0.00020273,2]
[405816034,1771333860540,-500.0,0.00020273,2]
[405816035,1771333860550,-500.0,0.00020273,2]
[405816036,1771333860559,-536.39,0.00020273,2]
[405816037,1771333860568,-500.0,0.00020273,2]
[405816038,1771333860578,-687.5,0.00020273,2]
[405816039,1771333860587,-500.0,0.00020273,2]
[405816040,1771333860596,-576.95,0.00020273,2]
[405816041,1771333860605,-500.0,0.00020273,2]
[405816042,1771333860615,-500.0,0.00020273,2]
[405816043,1771333860625,-500.0,0.00020273,2]
[405816044,1771333860635,-535.7,0.00020273,2]
[405816045,1771333860644,-500.0,0.00020273,2]
[405816046,1771333860654,-516.83,0.00020273,2]
[405816047,1771333860663,-500.0,0.00020273,2]
[405816048,1771333860673,-536.02,0.00020273,2]
[405816049,1771333860683,-745.29,0.00020273,2]
[405816050,1771333860693,-5962.75,0.00020273,2]
[405816051,1771333860702,-2833.52,0.00020273,2]
[405816052,1771333860712,-500.0,0.00020273,2]
[405816053,1771333860722,-794.37,0.00020273,2]
[405816054,1771333860732,-500.0,0.00020273,2]
[405816055,1771333860742,-676.25,0.00020273,2]
[405816056,1771333860752,-500.0,0.00020273,2]
[405816057,1771333860762,-500.0,0.00020273,2]
[405816058,1771333860772,-640.78,0.00020273,2]
[405816059,1771333860781,-500.0,0.00020273,2]
[405816060,1771333860792,-1641.04,0.00020273,2]
[405816061,1771333860802,-500.0,0.00020273,2]
[405816062,1771333860811,-500.0,0.00020273,2]
[405816063,1771333860820,-8287.17,0.00020273,2]
[405816064,1771333860830,-1095.31,0.00020273,2]
[405816065,1771333860840,-593.16,0.00020273,2]
[405816066,1771333860850,-500.0,0.00020273,2]
[405816067,1771333860860,-737.15,0.00020273,2]
[405816068,1771333860873,-1099.82,0.00020273,2]
[405816069,1771333860883,-500.0,0.00020273,2]
[405816070,1771333860893,-500.0,0.00020273,2]
[405816071,1771333860903,-41414.35,0.00020273,2]
[405816072,1771333860912,-980.10045765,0.00020273,39]
[405816073,1771333860921,-250.0,0.000203,10]
[405816074,1771333860931,-250.0,0.000204,10]
[405816075,1771333860940,-200.0,0.00020452,120]
[405816076,1771333860949,-250.0,0.000205,10]
[405816077,1771333860958,-500.0,0.00020547,2]
[405816078,1771333860967,-500.0,0.00020547,2]
[405816079,1771333860977,-479.12888951,0.00020547,2]
[405816080,1771333860987,-536.39,0.00020547,2]
[405816081,1771333860996,-500.0,0.00020547,2]
[405816082,1771333861006,-687.5,0.00020547,2]
[405816083,1771333861016,-500.0,0.00020547,2]
[405816084,1771333861097,-576.95,0.00020547,2]
[405816085,1771333861107,-500.0,0.00020547,2]
[405816086,1771333861119,-500.0,0.00020547,2]
[405816087,1771333861130,-500.0,0.00020547,2]
[405816088,1771333861140,-535.7,0.00020547,2]
[405816089,1771333861151,-500.0,0.00020547,2]
[405816090,1771333861162,-516.83,0.00020547,2]
[405816091,1771333861174,-517.85435917,0.00020547,2]
[405816092,1771333861184,-745.29,0.00020547,2]
[405816093,1771333861194,-5962.75,0.00020547,2]
[405816094,1771333861205,-2833.52,0.00020547,2]
[405816095,1771333861214,-500.0,0.00020547,2]
[405816096,1771333861224,-794.37,0.00020547,2]
[405816097,1771333861234,-500.0,0.00020547,2]
[405816098,1771333861244,-676.25,0.00020547,2]
[405816099,1771333861253,-500.0,0.00020547,2]
[405816100,1771333861263,-500.0,0.00020547,2]
[405816101,1771333861272,-640.78,0.00020547,2]
[405816102,1771333861282,-500.0,0.00020547,2]
[405816103,1771333861291,-1641.04,0.00020547,2]
[405816104,1771333861301,-500.0,0.00020547,2]
[405816105,1771333861311,-500.0,0.00020547,2]
[405816106,1771333861321,-8287.17,0.00020547,2]
[405816107,1771333861330,-1095.31,0.00020547,2]
[405816108,1771333861340,-593.16,0.00020547,2]
[405816109,1771333861350,-500.0,0.00020547,2]
[405816110,1771333861359,-737.15,0.00020547,2]
[405816111,1771333861370,-1099.82,0.00020547,2]
[405816112,1771333861380,-500.0,0.00020547,2]
[405816113,1771333861391,-500.0,0.00020547,2]
[405816114,1771333861401,-41414.35,0.00020547,2]
[405816115,1771333861414,-250.0,0.000206,10]
[405816116,1771333861424,-200.0,0.00020603,120]
[405816117,1771333861434,-1395.43658757,0.0002061,2]
[405816118,1771333861444,-904.97,0.000207,2]
[405816119,1771333861453,-250.0,0.000207,10]
[405816120,1771333861464,-1152.0,0.00020722,2]
[405816121,1771333861474,-980.10045765,0.00020741,42]
[405816122,1771333861484,-250.0,0.000208,10]
[405816123,1771333861493,-197.292128,0.00020802,2]
[405816124,1771333861502,-500.0,0.00020821,2]
[405816125,1771333861511,-500.0,0.00020821,2]
[405816126,1771333861521,-536.39,0.00020821,2]
[405816127,1771333861531,-687.5,0.00020821,2]
[405816128,1771333861540,-576.95,0.00020821,2]
[405816129,1771333861549,-500.0,0.00020821,2]
[405816130,1771333861559,-500.0,0.00020821,2]
[405816131,1771333861569,-500.0,0.00020821,2]
[405816132,1771333861578,-535.7,0.00020821,2]
[405816133,1771333861588,-500.0,0.00020821,2]
[405816134,1771333861598,-516.83,0.00020821,2]
[405816135,1771333861608,-745.29,0.00020821,2]
[405816136,1771333861618,-5962.75,0.00020821,2]
[405816137,1771333861627,-2833.52,0.00020821,2]
[405816138,1771333861638,-275.52,0.00020821,2]
[405816139,1771333861647,-794.37,0.00020821,2]
[405816140,1771333861658,-648.89122278,0.00020821,2]
[405816141,1771333861668,-676.25,0.00020821,2]
[405816142,1771333861678,-500.0,0.00020821,2]
[405816143,1771333861688,-500.0,0.00020821,2]
[405816144,1771333861698,-640.78,0.00020821,2]
[405816145,1771333861707,-500.0,0.00020821,2]
[405816146,1771333861716,-1641.04,0.00020821,2]
[405816147,1771333861726,-193.48577483,0.00020821,2]
[405816148,1771333861736,-500.0,0.00020821,2]
[405816149,1771333861746,-8287.17,0.00020821,2]
[405816150,1771333861756,-1095.31,0.00020821,2]
[405816151,1771333861766,-593.16,0.00020821,2]
[405816152,1771333861776,-500.0,0.00020821,2]
[405816153,1771333861786,-737.15,0.00020821,2]
[405816154,1771333861796,-1099.82,0.00020821,2]
[405816155,1771333861806,-616.0,0.00020821,2]
[405816156,1771333861815,-549.7717799,0.00020821,2]
[405816157,1771333861825,-41414.35,0.00020821,2]
[405816158,1771333861835,-158.02,0.00020891,2]
[405816159,1771333861845,-257.61932743,0.000209,2]
[405816160,1771333861854,-250.0,0.000209,10]
[405816161,1771333861864,-278.65077352,0.00021,2]
[405816162,1771333861874,-4984.18917231,0.00021,5]
[405816163,1771333861883,-202.64,0.00021,2]
[405816164,1771333861893,-1570.30245525,0.00021,10]
[405816165,1771333861904,-50000.0,0.00021,2]
[405816166,1771333861913,-10000.0,0.00021,2]
[405816167,1771333861923,-8185.63,0.00021,2]
[405816168,1771333861932,-3000.0,0.00021,2]
[405816169,1771333861942,-250.0,0.00021,10]
[405816170,1771333861951,-38000.0,0.0002101,3]
[405816171,1771333861961,-3000.0,0.0002101,2]
[405816172,1771333861971,-3000.0,0.0002102,2]
[405816173,1771333861980,-3000.0,0.0002103,2]
[405816174,1771333861990,-3000.0,0.0002104,2]
[405816175,1771333862000,-3000.0,0.0002105,2]
[405816176,1771333862010,-3000.0,0.0002106,2]
[405816177,1771333862019,-3000.0,0.0002107,2]
[405816178,1771333862029,-3000.0,0.0002108,2]
[405816179,1771333862039,-3000.0,0.0002109,2]
[405816180,1771333862048,-500.0,0.00021095,2]
[405816181,1771333862058,-500.0,0.00021095,2]
[405816182,1771333862068,-536.39,0.00021095,2]
[405816183,1771333862078,-687.5,0.00021095,2]
[405816184,1771333862088,-576.95,0.00021095,2]
[405816185,1771333862099,-500.0,0.00021095,2]
[405816186,1771333862112,-500.0,0.00021095,2]
[405816187,1771333862122,-500.0,0.00021095,2]
[405816188,1771333862132,-535.7,0.00021095,2]
[405816189,1771333862142,-500.0,0.00021095,2]
[405816190,1771333862152,-516.83,0.00021095,2]
[405816191,1771333862162,-745.29,0.00021095,2]
[405816192,1771333862176,-5962.75,0.00021095,2]
[405816193,1771333862186,-2833.52,0.00021095,2]
[405816194,1771333862195,-794.37,0.00021095,2]
[405816195,1771333862207,-676.25,0.00021095,2]
[405816196,1771333862217,-500.0,0.00021095,2]
[405816197,1771333862228,-638.1565007,0.00021095,2]
[405816198,1771333862238,-640.78,0.00021095,2]
[405816199,1771333862249,-500.0,0.00021095,2]
[405816200,1771333862258,-1641.04,0.00021095,2]
[405816201,1771333862268,-500.0,0.00021095,2]
[405816202,1771333862278,-8287.17,0.00021095,2]